bitfinex-derivatives/quotes_ETHF0:USTF0_20251204
["timestamp","ask_amount","ask_price","bid_price","bid_amount"]
[1764836300051,1.4644,3184.2,3184.1,1.5083]
[1764836301149,1.4644,3184.2,3183.6,3.36483]
[1764836301352,2.8749249,3184.1,3184.0,0.735]
[1764836301551,0.7542,3183.7,3183.6,4.87313]
[1764836302143,1.9248,3184.0,3183.9,1.5083]
[1764836302651,1.9248,3184.0,3183.9,0.735]
[1764836304854,1.9248,3184.0,3183.6,3.36483]
[1764836304855,1.4644,3183.7,3183.6,0.15703]
[1764836305048,2.8749249,3183.7,3183.6,0.15703]
[1764836305456,3.7138814,3183.7,3183.6,0.15703]
[1764836306554,3.7138814,3183.7,3183.6,0.89203]
[1764836309957,3.7138814,3183.7,3183.6,1.66533]
[1764836310554,2.3033565,3183.7,3183.6,1.66533]
[1764836311350,3.7138814,3183.7,3183.6,1.66533]
[1764836313557,0.8389565,3183.7,3183.6,1.66533]
[1764836313759,1.4955,3183.7,3183.6,1.68743]
[1764836314458,0.7542,3183.7,3183.6,4.89523]
[1764836316050,2.8577249,3184.0,3183.9,1.5304]
[1764836316857,3.3233249,3184.0,3183.9,0.7736]
[1764836317254,0.7059,3184.0,3183.9,1.5304]
[1764836317657,1.4472,3184.0,3183.9,1.5304]
[1764836320263,6.1069249,3184.3,3184.2,1.4693]
[1764836320559,2.2162999,3184.3,3184.2,1.4693]
[1764836320757,2.9349999,3184.3,3184.2,1.4693]
[1764836322060,0.7699,3184.3,3184.2,1.4693]
[1764836322464,2.9349999,3184.4,3184.3,1.4693]
[1764836322654,3.77464854,3184.4,3184.3,1.4693]
[1764836325162,3.77464854,3184.4,3184.3,0.7325]
[1764836325752,3.77464854,3184.4,3184.3,1.4693]
[1764836326160,2.9349999,3184.4,3184.3,1.4693]
[1764836326362,2.9349999,3184.4,3184.3,0.7325]
[1764836326656,2.9349999,3184.4,3184.3,1.4693]
[1764836327961,40.8,3184.7,3184.3,1.4693]
[1764836328167,42.2463999,3184.7,3184.6,1.4693]
[1764836328359,43.08669995,3184.7,3184.6,1.4693]
[1764836328559,43.08669995,3184.7,3184.6,0.7325]
[1764836328759,41.64030005,3184.7,3184.6,0.7325]
[1764836329066,43.08669995,3184.7,3184.6,0.7325]
[1764836329869,43.08669995,3184.7,3184.1,0.15701]
[1764836330161,0.7699,3184.2,3184.1,1.62631]
[1764836330768,1.4886,3184.2,3184.1,1.62631]
[1764836334975,1.4886,3184.2,3184.1,0.88951]
[1764836335273,1.4886,3184.2,3184.1,1.62631]
[1764836335665,1.4886,3184.5,3184.4,1.4693]
[1764836335869,0.7699,3184.5,3184.4,1.4693]
[1764836336075,42.2463999,3184.7,3184.6,1.4693]
[1764836336266,43.08652481,3184.7,3184.6,0.7325]
[1764836336470,43.08652481,3184.7,3184.1,0.15701]
[1764836336666,42.2463999,3184.7,3184.1,0.15701]
[1764836338881,1.4886,3184.2,3184.1,0.88951]
[1764836339082,1.4886,3184.2,3184.1,1.62631]
[1764836339486,1.4886,3184.2,3184.1,0.15701]
[1764836342186,1.4886,3184.2,3184.1,1.62631]
[1764836342683,1.4886,3184.2,3184.1,0.88951]
[1764836343491,1.4886,3184.2,3184.1,0.15701]
[1764836344188,0.4586,3184.0,3183.6,3.9533]
[1764836344484,2.9192999,3183.7,3183.6,3.9533]
[1764836344991,1.4729,3182.7,3182.6,0.7455]
[1764836345287,1.4729,3182.4,3182.3,4.0119]
[1764836345489,2.1873999,3182.7,3182.6,1.4599]
[1764836345876,0.741,3182.7,3182.6,1.4599]
[1764836346082,42.70971502,3183.0,3182.9,1.4599]
[1764836346277,2.19544076,3183.0,3182.9,1.4599]
[1764836346485,2.92734076,3183.0,3182.9,1.4599]
[1764836349393,1.48094086,3183.0,3182.9,1.4599]
[1764836350692,0.00804086,3183.0,3182.9,1.4599]
[1764836350895,0.00804086,3183.0,3182.9,1.61697]
[1764836351191,0.741,3183.6,3183.5,1.8824]
[1764836351580,1.4729,3183.6,3183.5,1.8824]
[1764836351885,40.8,3183.9,3183.8,1.4599]
[1764836352191,0.74499285,3183.9,3183.8,1.4599]
[1764836352396,0.00399285,3183.9,3183.8,1.4599]
[1764836352588,0.74499285,3183.9,3183.8,1.4599]
[1764836352888,1.47689285,3183.9,3183.8,1.4599]
[1764836353994,1.47689285,3183.9,3183.8,0.7455]
[1764836354196,0.741,3183.6,3183.5,2.03944]
[1764836354495,1.4729,3183.6,3183.5,2.03944]
[1764836355291,1.47689285,3183.9,3183.8,1.4599]
[1764836355497,0.00399285,3183.9,3183.8,1.4599]
[1764836355793,0.74499285,3183.9,3183.8,1.4599]
[1764836356098,1.47689285,3183.9,3183.8,1.4599]
[1764836356289,0.00399285,3183.9,3183.8,1.4599]
[1764836357303,0.00399285,3183.9,3183.8,1.61693]
[1764836357995,1.47689285,3183.9,3183.8,1.61693]
[1764836358298,0.00399285,3183.9,3183.8,1.61693]
[1764836358496,0.74499285,3183.9,3183.8,1.61693]
[1764836359299,1.47689285,3183.9,3183.8,1.61693]
[1764836359595,0.74499285,3183.9,3183.8,1.61693]
[1764836361801,0.00399285,3183.9,3183.8,3.0633299]
[1764836366802,0.00399285,3183.9,3183.8,3.0633299]
[1764836367003,1.47689285,3183.9,3183.8,0.15703]
[1764836367298,2.46048526,3183.9,3183.8,0.15703]
[1764836367802,1.4729,3183.4,3183.3,0.7455]
[1764836368002,1.4729,3183.3,3183.2,0.90256]
[1764836369102,1.4729,3183.3,3183.2,0.15706]
[1764836369299,1.4729,3183.3,3183.2,1.61696]
[1764836369506,0.741,3183.5,3183.4,1.4599]
[1764836369695,2.44819404,3183.5,3183.4,1.4599]
[1764836370904,0.97529404,3183.5,3183.4,1.61695]
[1764836372204,1.71629404,3183.5,3183.4,1.61695]
[1764836375004,0.97529404,3183.5,3183.4,1.61695]
[1764836386514,1.73489404,3183.5,3183.4,1.61695]
[1764836387615,0.97529404,3183.5,3183.4,1.61695]
[1764836388508,0.00399285,3183.9,3183.8,1.4914]
[1764836390210,0.00399285,3183.9,3183.8,1.64843]
[1764836390712,3.2078,3184.6,3184.5,0.4293]
[1764836390910,1.66662124,3185.2,3184.5,2.07769]
[1764836391214,4.7136,3185.1,3185.0,1.64837]
[1764836391714,4.71691728,3185.1,3185.0,1.65206153]
[1764836394110,3.21111728,3185.1,3185.0,2.08136153]
[1764836394505,3.97191728,3185.1,3185.0,2.08136153]
[1764836397715,4.71691728,3185.1,3185.0,2.08136153]
[1764836400822,4.71691728,3185.1,3185.0,0.16066153]
[1764836401215,4.71691728,3185.1,3185.0,0.89146153]
[1764836401419,4.71691728,3185.1,3185.0,1.65206153]
[1764836401614,4.71691728,3185.1,3185.0,3.06290884]
[1764836402013,4.71691728,3185.1,3185.0,1.65206153]
[1764836405125,1.50911728,3185.1,3185.0,1.65206153]
[1764836409928,3.2078,3185.9,3185.6,0.15694]
[1764836410226,0.7768,3185.7,3185.6,1.61614]
[1764836410732,0.7768,3186.0,3185.9,1.61612]
[1764836410932,0.78026788,3186.0,3185.9,1.61612]
[1764836411331,1.50666788,3186.0,3185.9,1.61612]
[1764836412036,1.5032,3185.3,3185.2,0.15696]
[1764836414229,1.5032,3185.3,3185.2,0.88966]
[1764836414840,1.5032,3185.3,3185.2,1.61616]
[1764836415539,1.5032,3185.3,3185.2,0.88966]
[1764836417740,1.5032,3185.3,3185.2,1.61616]
[1764836417940,0.7768,3185.6,3185.5,2.07754]
[1764836418237,1.5032,3185.6,3185.5,6.21844097]
[1764836418426,1.5032,3185.6,3185.5,2.07754]
[1764836418627,0.00346788,3186.0,3185.9,1.4592]
[1764836418835,1.71470894,3186.0,3185.9,1.4592]
[1764836419036,2.90760894,3186.0,3185.9,0.7327]
[1764836420243,2.90760894,3186.0,3185.9,0.88962]
[1764836424049,7.52625625,3186.0,3185.9,0.15692]
[1764836424254,6.11540894,3186.0,3185.9,0.15692]
[1764836424555,6.11540894,3186.0,3185.9,1.61612]
[1764836428050,5.64890894,3186.0,3185.9,1.61612]
[1764836431163,2.44110894,3186.0,3185.9,1.61612]
[1764836431465,2.44110894,3186.0,3185.9,3.02696731]
[1764836431650,0.93790894,3186.0,3185.9,3.02696731]
[1764836432160,1.71470894,3186.0,3185.9,3.02696731]
[1764836432560,1.71470894,3186.0,3185.9,1.61612]
[1764836432761,3.2078,3186.3,3186.2,1.61611]
[1764836433054,1.5032,3186.3,3186.2,0.15691]
[1764836433655,1.5032,3186.3,3186.2,0.88961]
[1764836433851,1.50682539,3186.3,3186.2,0.88961]
[1764836434052,1.50682539,3186.3,3186.2,1.66201]
[1764836434461,0.78042539,3186.3,3186.2,1.66201]
[1764836434959,1.53162539,3186.3,3186.2,1.66201]
[1764836438559,0.00362539,3186.3,3186.2,1.66201]
[1764836438756,0.74722539,3186.3,3186.2,1.66201]
[1764836439970,0.00362539,3186.3,3186.2,1.66201]
[1764836440468,0.74722539,3186.3,3186.2,1.66201]
[1764836441363,0.00362539,3186.3,3186.2,5.80791634]
[1764836442063,3.9514,3186.7,3186.6,1.67099]
[1764836442269,0.7436,3186.7,3186.6,3.08183731]
[1764836442470,0.7436,3186.7,3186.6,3.11490222]
[1764836442869,1.4948,3186.7,3186.6,3.11490222]
[1764836443068,1.49853541,3186.7,3186.6,3.11490222]
[1764836443566,0.74733541,3186.7,3186.6,3.11490222]
[1764836443767,1.49853541,3186.7,3186.6,3.11490222]
[1764836443968,0.74733541,3186.7,3186.6,3.11490222]
[1764836444465,1.49853541,3186.7,3186.6,3.11490222]
[1764836445869,3.2078,3187.2,3186.8,0.15688]
[1764836446068,4.7026,3187.2,3187.1,2.18561222]
[1764836446265,5.62295736,3187.2,3187.1,2.18561222]
[1764836446460,5.62295736,3187.2,3187.1,2.95801222]
[1764836446665,1.4948,3187.1,3187.0,1.60078222]
[1764836446971,0.4389,3186.5,3186.4,0.1569]
[1764836447168,1.9337,3186.5,3186.4,0.1569]
[1764836448274,1.9337,3186.5,3186.4,1.60081222]
[1764836448871,3.2078,3186.7,3186.6,0.7632]
[1764836449072,5.61941955,3186.7,3186.6,0.7632]
[1764836449280,1.4908,3186.6,3186.5,0.15689]
[1764836449578,2.4115474,3186.6,3186.5,1.60080222]
[1764836450266,2.4115474,3186.6,3186.5,3.09210222]
[1764836450468,1.4908,3186.6,3186.5,3.09210222]
[1764836451675,1.4908,3186.6,3186.5,2.36400222]
[1764836452777,1.4908,3186.6,3186.5,1.60080222]
[1764836454474,1.4908,3186.6,3186.5,2.36400222]
[1764836455682,1.4908,3186.6,3186.5,3.09210222]
[1764836456574,1.4908,3186.6,3186.5,2.36400222]
[1764836456879,1.4908,3186.6,3186.5,1.60080222]
[1764836458268,2.41211358,3186.6,3186.5,1.60080222]
[1764836458471,2.41211358,3186.6,3186.5,2.36400222]
[1764836459979,2.41211358,3186.6,3186.5,1.60080222]
[1764836461979,2.41211358,3186.6,3186.5,2.36400222]
[1764836463484,1.4908,3186.4,3186.3,0.00470743]
[1764836463686,5.9564394,3186.4,3186.3,0.00470743]
[1764836464087,46.7564394,3186.4,3186.3,0.00470743]
[1764836465286,46.7564394,3186.4,3186.3,7.43e-06]
[1764836465584,45.83512582,3186.4,3186.3,7.43e-06]
[1764836465785,46.75680753,3186.4,3186.3,7.43e-06]
[1764836469083,46.42028171,3186.4,3186.3,7.43e-06]
[1764836470997,48.08690295,3186.4,3186.3,7.43e-06]
[1764836471487,46.75611403,3186.4,3186.3,7.43e-06]
[1764836479195,46.60490037,3186.4,3186.3,7.43e-06]
[1764836479497,46.60490037,3186.4,3186.3,1.44391965]
[1764836480698,44.92948171,3186.4,3186.3,7.43e-06]
[1764836480901,45.26521944,3186.4,3186.3,7.43e-06]
[1764836486403,44.34353773,3186.4,3186.3,7.43e-06]
[1764836486603,45.35403647,3186.4,3186.3,7.43e-06]
[1764836492200,45.35403647,3186.4,3186.1,1.44391222]
[1764836492401,1.4185,3186.2,3186.1,2.92591222]
[1764836492601,2.42899874,3186.2,3186.1,2.92591222]
[1764836492904,1.01049874,3186.2,3186.1,3.08282222]
[1764836493306,1.71899874,3186.2,3186.1,3.08282222]
[1764836493497,1.01049874,3186.2,3186.1,3.08282222]
[1764836495605,2.4199991,3186.6,3186.5,1.9879]
[1764836495808,2.4199991,3186.6,3186.5,3.43181222]
[1764836496405,0.7419,3186.6,3186.5,3.43181222]
[1764836497710,1.4836,3186.6,3186.5,3.43181222]
[1764836498007,0.7419,3186.6,3186.5,3.43181222]
[1764836498602,1.4836,3186.6,3186.5,2.97461222]
[1764836499609,0.7419,3186.6,3186.5,3.43181222]
[1764836502008,1.4836,3186.6,3186.5,3.43181222]
[1764836502507,1.4836,3186.6,3186.5,1.44391222]
[1764836502908,1.9058,3186.5,3186.4,0.1569]
[1764836504516,1.4836,3186.0,3185.9,2.93920594]
[1764836505116,1.4836,3186.0,3185.9,3.09612594]
[1764836505314,1.9058,3186.0,3185.9,0.15692]
[1764836505613,1.9058,3186.0,3185.9,0.92992]
[1764836505814,1.9058,3186.0,3185.9,1.68762]
[1764836507113,1.9058,3186.0,3185.9,0.15692]
[1764836507304,1.9058,3186.0,3185.0,1.87359747]
[1764836507305,1.4836,3185.2,3185.1,0.92996]
[1764836507506,1.4836,3185.1,3185.0,0.77669153]
[1764836507709,2.45932835,3185.1,3185.0,2.94289747]
[1764836508509,2.45932835,3185.1,3185.0,2.18519747]
[1764836508712,2.47024141,3185.1,3185.0,2.18519747]
[1764836509313,0.98664141,3185.1,3185.0,3.40009747]
[1764836509503,2.47024141,3185.1,3185.0,3.40009747]
[1764836509704,2.47024141,3185.1,3185.0,1.53439153]
[1764836509907,1.72854141,3185.1,3185.0,1.53439153]
[1764836510108,1.72854141,3185.1,3185.0,1.99159153]
[1764836510411,0.98664141,3185.1,3185.0,1.99159153]
[1764836512108,1.72854141,3185.1,3185.0,1.99159153]
[1764836512304,1.4836,3184.8,3184.7,0.00470743]
[1764836512509,2.45932835,3184.8,3184.7,1.53540743]
[1764836512708,2.47024141,3184.8,3184.7,1.53540743]
[1764836513002,2.47024141,3184.8,3184.7,0.77770743]
[1764836513514,2.47430704,3184.8,3184.7,0.00788325]
[1764836515810,2.47430704,3184.8,3184.7,0.78088325]
[1764836516614,2.47430704,3184.8,3184.7,1.49398325]
[1764836516817,0.01497869,3184.8,3184.7,1.49398325]
[1764836518220,0.01497869,3184.8,3184.7,1.65096325]
[1764836522422,0.00470743,3185.1,3185.0,2.04937]
[1764836522624,0.00470743,3185.1,3185.0,3.45787594]
[1764836522922,5.129,3186.0,3185.9,1.4407]
[1764836523124,6.13117881,3186.0,3185.9,0.7276]
[1764836523319,1.9434,3185.5,3185.4,0.7276]
[1764836523516,2.93968017,3185.5,3185.4,0.7276]
[1764836523716,1.9434,3185.5,3185.4,1.4407]
[1764836523916,1.9434,3185.5,3185.4,0.7276]
[1764836524215,2.93968915,3185.5,3185.4,0.7276]
[1764836524415,1.54,3185.2,3185.1,0.15696]
[1764836524622,1.54,3185.2,3185.1,1.67656]
[1764836527425,0.7662,3185.2,3185.1,1.67656]
[1764836527626,1.54,3185.2,3185.1,1.67656]
[1764836528226,2.53661979,3185.2,3185.1,1.67656]
[1764836528619,1.54,3185.2,3185.1,1.67656]
[1764836529525,0.7662,3185.2,3185.1,1.67656]
[1764836530219,1.76320931,3185.2,3185.1,1.67656]
[1764836531035,0.99700931,3185.2,3185.1,1.67656]
[1764836531326,1.54,3185.4,3185.3,0.7398]
[1764836531525,2.53749598,3185.4,3185.3,0.7398]
[1764836533128,1.54,3185.2,3185.1,0.89676]
[1764836533329,2.53749598,3185.2,3185.1,0.15696]
[1764836534228,2.53749598,3185.2,3185.1,0.89676]
[1764836535530,2.53749598,3185.2,3185.1,0.15696]
[1764836536532,4.21427279,3185.2,3185.1,0.15696]
[1764836537432,2.53749598,3185.2,3185.1,0.15696]
[1764836537729,1.54,3184.8,3184.7,0.00788325]
[1764836538032,2.53749598,3184.8,3184.7,0.74768325]
[1764836538230,43.33749598,3184.8,3184.7,0.74768325]
[1764836539630,41.79749598,3184.8,3184.7,1.52748325]
[1764836539830,41.79749598,3184.8,3184.7,0.00788325]
[1764836540631,41.79749598,3184.8,3184.7,0.74768325]
[1764836542229,41.79749598,3184.8,3184.7,1.52748325]
[1764836542634,41.79749598,3184.8,3184.7,2.93598919]
[1764836545431,41.79749598,3184.8,3184.7,0.74768325]
[1764836548536,41.79749598,3184.8,3184.7,3.09296919]
[1764836548738,0.99749598,3184.8,3184.7,3.09296919]
[1764836551140,45.5478,3185.4,3185.3,1.5196]
[1764836551347,46.53715736,3185.4,3185.3,1.5196]
[1764836553737,46.53715736,3185.4,3185.3,0.7398]
[1764836554243,1.5317,3185.3,3185.2,0.89516]
[1764836554436,2.52105736,3185.3,3185.2,0.89516]
[1764836560244,2.52105736,3185.3,3185.2,0.15696]
[1764836562443,43.32105736,3185.3,3185.2,0.15696]
[1764836569753,41.78935736,3185.3,3185.2,0.89516]
[1764836569957,41.78935736,3185.3,3185.2,0.15696]
[1764836572750,43.46623371,3185.3,3185.2,0.15696]
[1764836574367,0.98935736,3185.3,3185.2,4.80086]
[1764836574557,1.54755251,3185.7,3185.6,1.4361]
[1764836574761,41.54038179,3185.8,3185.7,1.4361]
[1764836575259,0.00468179,3185.8,3185.7,1.4361]
[1764836575458,0.00468179,3185.8,3185.7,1.59303]
[1764836575665,0.00329105,3186.0,3185.9,1.4361]
[1764836575857,0.00329105,3186.0,3185.9,2.88166767]
[1764836575858,0.73899105,3186.0,3185.9,2.88166767]
[1764836576055,1.46779105,3186.0,3185.9,2.88166767]
[1764836576256,1.90349105,3186.0,3185.9,2.16106767]
[1764836577165,1.90349105,3186.0,3185.9,2.88166767]
[1764836577766,1.46779105,3186.0,3185.9,2.88166767]
[1764836579160,1.90349105,3186.0,3185.9,2.88166767]
[1764836580270,1.90349105,3186.0,3185.9,2.16106767]
[1764836580468,1.90349105,3186.0,3185.9,1.44556767]
[1764836581070,1.90349105,3186.0,3185.9,2.16106767]
[1764836581373,1.90349105,3186.0,3185.9,1.44556767]
[1764836581872,1.4645,3185.9,3185.8,0.15692]
[1764836582570,1.4645,3185.4,3185.3,1.44556767]
[1764836584566,1.4645,3185.4,3185.3,2.16106767]
[1764836584775,40.8,3185.5,3185.4,1.4272]
[1764836586270,40.8,3185.5,3185.4,1.58415]
[1764836586470,41.87640543,3185.5,3185.4,1.58415]
[1764836586860,1.4645,3185.3,3185.2,3.2078]
[1764836587172,2.54090543,3185.3,3185.2,3.2078]
[1764836587375,2.54090543,3185.3,3185.2,3.9189]
[1764836588265,1.78070543,3185.3,3185.2,4.635]
[1764836588464,1.07640543,3185.3,3185.2,4.635]
[1764836589469,2.54090543,3185.3,3185.2,4.635]
[1764836589673,2.54090543,3185.3,3185.2,3.2078]
[1764836589871,2.54090543,3185.3,3185.2,3.9189]
[1764836590071,1.78070543,3185.3,3185.2,4.635]
[1764836590472,1.78070543,3185.3,3185.2,4.79196]
[1764836590772,2.54090543,3185.3,3185.2,4.79196]
[1764836591172,2.54090543,3185.3,3185.2,3.36476]
[1764836591572,2.54090543,3185.3,3185.2,4.07586]
[1764836592275,2.54090543,3185.3,3185.2,3.36476]
[1764836593275,2.54090543,3185.3,3185.2,4.07586]
[1764836594474,2.54090543,3185.3,3185.2,0.86806]
[1764836595882,2.54090543,3185.3,3185.2,1.58416]
[1764836596280,1.07640543,3185.3,3185.2,1.58416]
[1764836600184,2.3793424,3185.8,3185.7,1.4272]
[1764836600485,2.54270682,3185.8,3185.7,1.4272]
[1764836604382,1.78250682,3185.8,3185.7,1.4272]
[1764836604883,2.54270682,3185.8,3185.7,1.4272]
[1764836607886,1.78250682,3185.8,3185.7,1.58413]
[1764836609589,1.07820682,3185.8,3185.7,1.58413]
[1764836615490,1.78210682,3185.8,3185.7,1.58413]
[1764836616798,2.52920682,3185.8,3185.7,0.15693]
[1764836617088,1.9242,3185.5,3185.4,1.44556767]
[1764836617283,3.00240682,3185.5,3185.4,1.44556767]
[1764836617682,1.4779,3185.2,3185.1,3.07953745]
[1764836617887,2.55610682,3185.2,3185.1,3.07953745]
[1764836619296,43.35610682,3185.2,3185.1,3.07953745]
[1764836625103,2.55610682,3185.1,3185.0,0.15697]
[1764836628205,1.502,3184.8,3184.7,0.00788325]
[1764836628403,2.58020682,3184.8,3184.7,0.00788325]
[1764836630108,1.07820682,3184.8,3184.7,1.48538325]
[1764836630316,1.83230682,3184.8,3184.7,1.48538325]
[1764836630514,2.58020682,3184.8,3184.7,0.00788325]
[1764836632215,1.502,3184.3,3184.2,3.2078]
[1764836632404,1.502,3184.3,3184.0,0.15702]
[1764836632405,1.502,3184.1,3184.0,0.15702]
[1764836632608,2.58020682,3184.1,3184.0,0.15702]
[1764836633214,2.58020682,3184.1,3184.0,0.16082911]
[1764836634811,43.38020682,3184.1,3184.0,0.16082911]
[1764836637018,43.38020682,3184.1,3184.0,0.00380911]
[1764836637221,1.502,3183.8,3183.7,0.00470743]
[1764836637421,1.83230682,3183.8,3183.7,1.48220743]
[1764836637922,2.58020682,3183.8,3183.7,1.48220743]
[1764836638117,2.58020682,3183.8,3183.7,1.48617861]
[1764836639718,2.58020682,3183.8,3183.7,0.77737861]
[1764836640117,2.58020682,3183.8,3183.7,1.48617861]
[1764836642127,1.83230682,3183.8,3183.7,1.48617861]
[1764836642324,1.07820682,3183.8,3183.7,1.48617861]
[1764836643827,0.00470743,3184.4,3184.3,0.7273]
[1764836643828,1.45660743,3184.4,3184.3,0.7273]
[1764836644127,1.4519,3184.2,3184.1,2.86954687]
[1764836644324,43.31986156,3184.2,3184.1,2.13684687]
[1764836644521,43.31986156,3184.2,3184.1,0.7273]
[1764836644823,43.31986156,3184.2,3184.1,1.46]
[1764836645022,42.60606156,3184.2,3184.1,2.86954687]
[1764836645223,42.60606156,3184.2,3184.1,3.02655687]
[1764836646227,41.86796156,3184.2,3184.1,3.02655687]
[1764836646431,1.06796156,3184.2,3184.1,3.02655687]
[1764836648125,0.00470743,3184.4,3184.3,1.617]
[1764836648432,41.84614384,3184.9,3184.8,1.61698]
[1764836648630,41.84614384,3184.9,3184.8,3.02652687]
[1764836649330,1.78424384,3184.9,3184.8,3.02652687]
[1764836649528,2.49804384,3184.9,3184.8,3.02652687]
[1764836649834,2.49804384,3184.9,3184.8,0.15698]
[1764836650130,2.49804384,3184.9,3184.8,0.88428]
[1764836657029,2.49804384,3184.9,3184.8,0.15698]
[1764836657228,2.49804384,3184.9,3184.8,0.88428]
[1764836657535,2.49804384,3184.9,3184.8,0.15698]
[1764836658635,1.4519,3184.9,3184.8,0.15698]
[1764836658936,1.4519,3184.0,3183.9,3.02656687]
[1764836659139,1.8801,3184.0,3183.9,3.02656687]
[1764836659840,1.11326467,3184.0,3183.9,1.61702]
[1764836660441,1.11326467,3184.0,3183.9,5.68187792]
[1764836661141,1.67530467,3184.5,3184.4,1.46]
[1764836661338,0.7381,3184.6,3184.5,2.05139]
[1764836661537,3.12600937,3184.6,3184.5,3.46093687]
[1764836661738,1.4519,3184.6,3184.5,0.15699]
[1764836664245,3.12600937,3184.6,3184.5,0.15699]
[1764836668541,1.4519,3184.6,3184.5,0.15699]
[1764836669137,42.2519,3184.6,3184.5,0.15699]
[1764836673048,43.32411727,3184.6,3184.5,0.15699]
[1764836675746,0.7381,3183.8,3183.7,4.66827861]
[1764836676048,1.81031727,3183.8,3183.7,4.66827861]
[1764836677248,1.81031727,3183.8,3183.7,4.82530861]
[1764836679354,2.54641727,3183.8,3183.7,4.10080861]
[1764836679949,2.54641727,3183.8,3183.7,4.82530861]
[1764836681649,2.54641727,3183.8,3183.7,4.10080861]
[1764836681851,1.4555,3183.4,3183.3,4.6979]
[1764836682051,2.52771727,3183.4,3183.3,4.6979]
[1764836682958,2.53108596,3183.4,3183.3,4.70136676]
[1764836683149,2.53108596,3183.4,3183.3,6.26796363]
[1764836684753,43.33108596,3183.4,3183.3,6.26796363]
[1764836687855,43.33108596,3183.4,3183.3,4.12821676]
[1764836688358,43.33108596,3183.4,3183.3,6.30075861]
[1764836689348,43.33108596,3183.4,3183.3,5.57525861]
[1764836690556,41.87558596,3183.4,3183.3,6.30075861]
[1764836690954,41.87558596,3183.4,3183.3,4.81535861]
[1764836691259,41.87558596,3183.4,3183.3,5.57525861]
[1764836691456,1.07558596,3183.4,3183.3,5.57525861]
[1764836691757,2.60248596,3183.4,3183.3,5.57525861]
[1764836693061,2.60248596,3183.4,3183.3,4.81535861]
[1764836693750,2.60248596,3183.4,3183.3,0.16051676]
[1764836694057,1.5269,3183.1,3183.0,1.49010743]
[1764836694259,2.59911727,3183.1,3183.0,1.49010743]
[1764836694861,2.59911727,3183.1,3183.0,1.49306674]
[1764836695166,2.59911727,3183.1,3183.0,0.16473674]
[1764836695463,2.59911727,3183.1,3183.0,0.92463674]
[1764836695762,2.59911727,3183.1,3183.0,1.65013674]
[1764836696061,2.59911727,3183.1,3183.0,0.92463674]
[1764836696264,1.82021727,3183.1,3183.0,3.09717859]
[1764836696459,1.82021727,3183.1,3183.0,3.53497859]
[1764836696764,2.59911727,3183.1,3183.0,3.53497859]
[1764836699258,1.07221727,3183.1,3183.0,3.53497859]
[1764836700666,1.82021727,3183.1,3183.0,3.53497859]
[1764836701064,1.07221727,3183.1,3183.0,3.53497859]
[1764836701264,0.75136869,3183.4,3183.3,1.64245]
[1764836701564,0.00336869,3183.4,3183.3,6.29729185]
[1764836701765,2.42511814,3184.1,3184.0,1.64242]
[1764836701968,1.5269,3184.2,3184.1,0.15701]
[1764836702267,1.5269,3184.2,3184.1,1.64241]
[1764836702659,1.53003402,3184.2,3184.1,1.64241]
[1764836702964,0.75113402,3184.2,3184.1,1.64241]
[1764836703160,0.00313402,3184.2,3184.1,1.64241]
[1764836703565,0.00313402,3184.2,3184.1,4.85021]
[1764836704762,1.46453402,3184.2,3184.1,4.85021]
[1764836704961,0.00313402,3184.2,3184.1,4.85021]
[1764836705470,0.75183402,3184.2,3184.1,4.85021]
[1764836706171,1.46453402,3184.2,3184.1,4.12471]
[1764836706370,1.46453402,3184.2,3184.1,3.36481]
[1764836707067,1.46453402,3184.2,3184.1,4.10981]
[1764836707470,1.46453402,3184.2,3184.1,3.36481]
[1764836707775,1.46453402,3184.2,3184.1,0.15701]
[1764836708361,42.26453402,3184.2,3184.1,0.15701]
[1764836711875,42.26453402,3184.2,3184.1,0.90201]
[1764836712071,42.26453402,3184.2,3184.1,4.88201]
[1764836712376,1.67711814,3184.7,3184.6,0.745]
[1764836712667,3.13851814,3184.7,3184.6,3.12123185]
[1764836712873,43.93851814,3184.7,3184.6,3.12123185]
[1764836713076,42.2614,3184.7,3184.6,3.12123185]
[1764836713273,43.26225213,3184.7,3184.6,3.12123185]
[1764836713476,43.26498245,3184.7,3184.6,3.12123185]
[1764836714576,43.26498245,3184.7,3184.6,2.34903185]
[1764836715073,43.26498245,3184.7,3184.6,1.60403185]
[1764836715773,43.26498245,3184.7,3184.6,0.15699]
[1764836716180,43.26498245,3184.7,3184.6,1.67419]
[1764836716378,43.26498245,3184.7,3184.6,0.90199]
[1764836716979,43.26498245,3184.7,3184.6,0.15699]
[1764836719985,42.26413032,3184.7,3184.6,0.15699]
[1764836720283,43.24790484,3184.7,3184.6,0.15699]
[1764836720781,40.80273032,3184.7,3184.6,0.90199]
[1764836721189,41.78651247,3184.7,3184.6,0.15699]
[1764836722284,40.80273032,3184.7,3184.6,0.15699]
[1764836723190,41.78662851,3184.7,3184.6,0.15699]
[1764836723490,40.80273032,3184.7,3184.6,0.15699]
[1764836723693,41.78667358,3184.7,3184.6,0.15699]
[1764836725690,43.45936301,3184.7,3184.6,0.15699]
[1764836727392,41.78667358,3184.7,3184.6,0.15699]
[1764836728895,1.4614,3184.2,3184.1,3.2078]
[1764836729194,2.44534326,3184.2,3184.1,3.2078]
[1764836729789,2.44534326,3184.2,3184.1,3.9528]
[1764836730194,2.44534326,3184.2,3184.1,4.10981]
[1764836730693,2.44534326,3184.2,3184.1,3.36481]
[1764836731199,2.44534326,3184.2,3184.1,4.88201]
[1764836734502,3.89238511,3184.2,3184.1,3.2078]
[1764836734685,1.4313,3183.8,3183.7,3.2078]
[1764836734891,2.41524326,3183.8,3183.7,3.2078]
[1764836735594,43.21524326,3183.8,3183.7,3.2078]
[1764836735793,44.89185796,3183.8,3183.7,3.2078]
[1764836736298,43.21524326,3183.8,3183.7,3.2078]
[1764836736498,43.21524326,3183.8,3183.7,3.9856]
[1764836737901,43.21524326,3183.8,3183.7,0.7778]
[1764836738099,1.4313,3183.7,3183.6,0.93483]
[1764836738303,2.41524326,3183.7,3183.6,0.93483]
[1764836740306,2.41524326,3183.7,3183.6,0.15703]
[1764836741105,2.41524326,3183.7,3183.6,0.93483]
[1764836743403,2.41524326,3183.7,3183.6,0.15703]
[1764836745914,2.41524326,3183.7,3183.6,1.64163]
[1764836746110,2.41524326,3183.7,3183.6,3.08867185]